bitfinex-derivatives/quotes_SOLF0:USTF0_20240815
["timestamp","ask_amount","ask_price","bid_price","bid_amount"]
[1723760600091,3.95604737,141.96,141.95,0.04479483]
[1723760600298,2.5077,141.96,141.95,0.04479483]
[1723760600498,6.46369864,141.96,141.95,0.04479483]
[1723760600694,6.46369864,141.96,141.88,33.93]
[1723760600695,6.46369864,141.96,141.9,1.7613]
[1723760600997,2.5077,141.96,141.88,33.93]
[1723760601188,4.2683,141.96,141.91,1.7611]
[1723760601393,4.2683,141.96,141.88,33.93]
[1723760601788,2.5077,141.96,141.91,0.04903539]
[1723760601995,33.93,141.92,141.81,3.49997132]
[1723760602187,33.93,141.92,141.81,33.93]
[1723760602388,1.7613,141.9,141.81,33.93]
[1723760602588,8.04,141.89,141.81,33.93]
[1723760602797,33.93,141.91,141.81,33.93]
[1723760603003,0.05401226,141.87,141.85,0.05275584]
[1723760603896,0.00701226,141.87,141.86,33.93]
[1723760604098,1.2847,141.96,141.86,33.93]
[1723760604307,3.95581007,141.95,141.88,33.93]
[1723760604508,3.0454,141.96,141.88,33.93]
[1723760604805,3.95587978,141.95,141.88,33.93]
[1723760605005,0.04850772,141.93,141.9,1.7613]
[1723760605203,0.04850772,141.93,141.9,1.81562751]
[1723760605509,0.04850772,141.93,141.9,0.05432751]
[1723760606302,1.7611,141.92,141.9,0.05432751]
[1723760606607,0.04850772,141.93,141.9,0.05432751]
[1723760607602,1.7611,141.92,141.9,0.05432751]
[1723760608308,1.7612,141.91,141.9,0.05432751]
[1723760609303,3.95684307,141.91,141.85,1.7619]
[1723760609511,7.68,141.92,141.85,1.7619]
[1723760609710,1.7614,141.9,141.85,1.7619]
[1723760610007,7.68,141.92,141.85,1.7618]
[1723760610205,1.7614,141.9,141.81,33.93]
[1723760610405,1.81018437,141.9,141.87,0.05339795]
[1723760610607,1.7614,141.9,141.81,37.43719393]
[1723760610905,0.05273853,141.87,141.84,0.05183077]
[1723760611099,0.05273853,141.87,141.85,1.7619]
[1723760612113,0.05273853,141.87,141.84,0.05183077]
[1723760613903,0.05273853,141.87,141.85,1.7619]
[1723760614315,0.05273853,141.87,141.84,0.05183077]
[1723760614316,0.05273853,141.87,141.84,33.98183077]
[1723760614815,54.91722357,142.03,141.86,67.86]
[1723760614816,6.15673815,141.93,141.86,67.86]
[1723760615115,6.15673815,141.93,141.85,35.86]
[1723760615116,6.15493116,141.98,141.91,33.93]
[1723760615324,23.10506441,141.97,141.92,7.68]
[1723760615509,1.90538772,141.99,141.91,7.68]
[1723760615510,17.98783309,141.96,141.91,7.68]
[1723760615812,3.9556707,141.95,141.91,7.68]
[1723760616116,0.05259532,141.95,141.92,0.04704383]
[1723760616311,0.05259532,141.95,141.94,1.7608]
[1723760616815,0.05259532,141.95,141.94,35.6908]
[1723760617114,1.90538772,141.99,141.94,33.93]
[1723760617314,3.95525946,141.98,141.94,33.93]
[1723760617510,1.90538772,141.99,141.97,1.7604]
[1723760617811,3.9549417,141.98,141.97,1.7604]
[1723760618009,11.83137067,141.98,141.96,0.05298461]
[1723760618209,3.95526157,141.97,141.96,0.05298461]
[1723760618412,1.90538772,141.99,141.94,7.68]
[1723760618614,11.87977682,141.98,141.95,0.04956892]
[1723760618810,3.9552239,141.97,141.95,0.04956892]
[1723760619014,3.9552239,141.96,141.95,0.04956892]
[1723760619511,11.83264322,141.96,141.95,0.04956892]
[1723760621415,0.04815091,141.98,141.95,0.04956892]
[1723760621721,27.84145714,141.97,141.88,33.93]
[1723760621921,24.86756333,141.96,141.9,1.7613]
[1723760622220,11.83373726,141.95,141.88,33.93]
[1723760622414,3.95592764,141.94,141.9,1.7612]
[1723760622622,1.7607,141.96,141.9,1.7612]
[1723760622820,0.05426176,141.93,141.91,0.04719416]
[1723760623830,0.05426176,141.93,141.92,1.7611]
[1723760626624,1.90538772,141.99,141.91,0.04719416]
[1723760626826,23.10443617,141.98,141.91,0.04719416]
[1723760627029,11.83264455,141.97,141.95,1.7606]
[1723760627326,1.90538772,141.99,141.92,41.61]
[1723760627523,0.05082537,141.95,141.94,1.7608]
[1723760627720,0.05082537,141.95,141.93,3.60955024]
[1723760627721,1.90538772,141.99,141.93,3.60955024]
[1723760628021,0.04727781,141.96,141.93,3.60955024]
[1723760628527,0.04727781,141.96,141.93,0.0459842]
[1723760628718,0.04727781,141.96,141.95,1.7607]
[1723760629322,0.01167781,141.96,141.95,1.7607]
[1723760633423,0.01167781,141.96,141.93,3.48991162]
[1723760634325,0.01167781,141.96,141.93,0.0459842]
[1723760635327,0.01167781,141.96,141.95,1.7607]
[1723760643733,0.01167781,141.96,141.93,3.48276099]
[1723760643928,0.01167781,141.96,141.93,0.0459842]
[1723760644636,0.01167781,141.96,141.93,3.55634083]
[1723760644839,0.01167781,141.96,141.93,0.0459842]
[1723760645135,0.01167781,141.96,141.94,1.7607]
[1723760646133,0.01167781,141.96,141.95,1.7607]
[1723760647136,0.01167781,141.96,141.93,0.0459842]
[1723760647538,0.01167781,141.96,141.94,1.7607]
[1723760648229,0.01167781,141.96,141.95,1.7607]
[1723760650031,0.01167781,141.96,141.93,0.0459842]
[1723760650738,0.01167781,141.96,141.93,1.8068842]
[1723760651035,0.01167781,141.96,141.93,0.0459842]
[1723760651235,0.01167781,141.96,141.95,1.7607]
[1723760651636,0.01167781,141.96,141.93,0.0459842]
[1723760651945,0.01167781,141.96,141.94,1.7608]
[1723760652543,0.01167781,141.96,141.93,0.0459842]
[1723760653142,1.77237781,141.96,141.93,0.0459842]
[1723760653346,0.01167781,141.96,141.93,0.0459842]
[1723760653748,1.7607,141.95,141.93,0.0459842]
[1723760654047,0.01167781,141.96,141.93,0.0459842]
[1723760654442,3.95575245,141.95,141.88,7.54]
[1723760654653,3.95575245,141.94,141.87,27.05]
[1723760654947,1.23977781,141.96,141.87,28.8116]
[1723760654948,1.2281,141.96,141.87,28.8116]
[1723760655145,11.83430105,141.95,141.87,1.7616]
[1723760655347,1.7612,141.91,141.86,27.05]
[1723760655549,27.05,141.95,141.9,0.04888504]
[1723760655550,0.05069053,141.92,141.9,0.04888504]
[1723760655750,0.05069053,141.92,141.86,27.05]
[1723760656049,1.81179053,141.92,141.9,0.05028313]
[1723760657049,0.05069053,141.92,141.9,0.05028313]
[1723760657551,1.7612,141.91,141.86,28.8118]
[1723760658050,1.7612,141.91,141.87,1.7617]
[1723760658246,1.81179053,141.92,141.87,1.7617]
[1723760658652,1.81179053,141.92,141.88,0.04913112]
[1723760659657,5.71789863,141.91,141.88,0.04913112]
[1723760659856,1.7612,141.91,141.88,0.04913112]
[1723760660756,0.05069053,141.92,141.88,0.04913112]
[1723760660952,1.27,141.9,141.88,0.04913112]
[1723760661152,3.0314,141.9,141.88,0.04913112]
[1723760661753,1.7615,141.89,141.88,0.04913112]
[1723760662755,3.0167,141.89,141.88,0.04913112]
[1723760663452,1.27,141.9,141.88,0.04913112]
[1723760664951,3.0313,141.9,141.88,0.04913112]
[1723760665261,1.27,141.9,141.83,95.48889852]
[1723760665661,2.9944,141.89,141.84,1.762]
[1723760665864,2.9944,141.89,141.83,88.28889852]
[1723760666059,1.2329,141.89,141.85,27.05]
[1723760666263,0.04515635,141.88,141.86,0.0447384]
[1723760673362,0.04515635,141.88,141.86,1.8064384]
[1723760674157,0.04515635,141.88,141.87,28.8117]
[1723760674564,1.3319,141.93,141.89,1.7614]
[1723760674767,1.3319,141.93,141.89,28.8114]
[1723760674968,1.3319,141.93,141.89,27.05]
[1723760675172,1.3319,141.93,141.9,1.7612]
[1723760675364,1.3319,141.93,141.89,27.05]
[1723760675563,2.4822,141.94,141.89,27.05]
[1723760675865,0.04790367,141.92,141.9,0.0540879]
[1723760677164,0.04790367,141.92,141.9,1.8152879]
[1723760679073,1.2201,141.98,141.91,27.05]
[1723760679265,1.2201,141.98,141.93,27.05]
[1723760679266,3.95529258,141.97,141.93,27.05]
[1723760679470,1.2201,141.98,141.94,1.7607]
[1723760679674,3.9553076,141.97,141.94,1.7607]
[1723760679877,1.2201,141.98,141.94,1.7607]
[1723760680266,0.0449449,141.97,141.95,0.05265525]
[1723760681672,0.0449449,141.97,141.91,27.05]
[1723760681874,3.95550944,141.96,141.91,27.05]
[1723760682071,1.2201,141.98,141.91,27.05]
[1723760682273,13.59309234,141.97,141.92,1.761]
[1723760682472,3.95554602,141.96,141.92,1.761]
[1723760682675,1.90538772,141.99,141.93,27.05]
[1723760682974,0.05067525,141.95,141.93,27.10047418]
[1723760683774,0.05067525,141.95,141.94,1.7608]
[1723760686375,0.05067525,141.95,141.93,0.05047418]
[1723760687385,0.05067525,141.95,141.94,1.7608]
[1723760687774,0.05067525,141.95,141.93,0.05047418]
[1723760687977,0.05067525,141.95,141.93,1.81137418]
[1723760688175,0.05067525,141.95,141.93,0.05047418]
[1723760691580,0.05067525,141.95,141.94,27.05]
[1723760691783,0.05067525,141.95,141.93,0.05047418]
[1723760692080,0.05067525,141.95,141.94,1.7608]
[1723760693380,0.05067525,141.95,141.93,0.05047418]
[1723760694489,11.83496586,141.94,141.93,0.05047418]
[1723760694989,3.95633716,141.94,141.93,0.05047418]
[1723760695185,11.83488623,141.94,141.93,0.05047418]
[1723760695388,11.83488623,141.94,141.91,1.7612]
[1723760695389,11.83488623,141.94,141.86,27.05]
[1723760695684,1.2547,141.94,141.86,27.05]
[1723760695884,1.2547,141.94,141.78,27.05]
[1723760695885,5.29209892,141.93,141.84,27.05]
[1723760696081,3.0966,141.93,141.84,27.05]
[1723760696282,3.95655306,141.92,141.84,27.05]
[1723760696480,0.04657274,141.89,141.87,1.81494019]
[1723760698386,0.04657274,141.89,141.88,1.7616]
[1723760700492,0.04657274,141.89,141.88,28.8116]
[1723760700793,0.04657274,141.89,141.87,1.81494019]
[1723760700986,0.04657274,141.89,141.87,0.05334019]
[1723760702293,0.04657274,141.89,141.88,1.7616]
[1723760705604,0.04657274,141.89,141.88,28.8116]
[1723760708108,0.04657274,141.89,141.88,1.7616]
[1723760709505,0.04657274,141.89,141.87,0.05334019]
[1723760710609,1.7616,141.88,141.87,0.05334019]
[1723760710808,1.7616,141.88,141.81,6.68]
[1723760710809,3.95727275,141.88,141.81,6.68]
[1723760711010,0.04657274,141.89,141.79,27.05]
[1723760711210,3.95744392,141.88,141.79,27.05]
[1723760711505,38.88902619,141.87,141.79,27.05]
[1723760711816,7.04569064,141.86,141.8,1.7625]
[1723760712107,3.088,141.86,141.8,1.7625]
[1723760712310,0.05269933,141.84,141.82,0.04521941]
[1723760713510,0.05269933,141.84,141.83,27.05]
[1723760713710,0.05269933,141.84,141.83,28.8122]
[1723760716006,2.5787,141.9,141.83,30.49789744]
[1723760716314,6.68,141.94,141.86,27.05]
[1723760716502,11.83493167,141.93,141.89,1.7614]
[1723760716711,6.68,141.94,141.89,1.7614]
[1723760716911,3.95629137,141.92,141.89,1.7614]
[1723760717206,0.05198112,141.92,141.89,0.0477395]
[1723760717604,0.05198112,141.92,141.91,1.7612]
[1723760718614,2.5334,141.98,141.9,27.05]
[1723760718908,3.95517203,141.97,141.93,27.05]
[1723760719110,1.90538772,141.99,141.95,27.05]
[1723760719617,0.04820131,141.98,141.96,0.04692794]
[1723760719812,0.04820131,141.98,141.96,3.59272786]
[1723760720107,0.04820131,141.98,141.96,3.63976482]
[1723760720313,0.04820131,141.98,141.96,0.04692794]
[1723760720712,0.04820131,141.98,141.97,1.7605]
[1723760720910,1.90538772,141.99,141.97,27.05]
[1723760721707,6.15237779,142.05,141.97,27.05]
[1723760721910,1.56521747,142.07,141.95,10.12463148]
[1723760721911,1.56521747,142.07,142.03,27.05]
[1723760722113,11.77106917,142.17,142.06,54.1]
[1723760722307,4.93670986,142.12,142.07,33.73]
[1723760722512,8.94794707,142.18,142.11,27.05]
[1723760722811,6.1346237,142.17,142.11,27.05]
[1723760723012,0.06643541,142.13,142.1,27.05]
[1723760723514,0.06643541,142.13,142.08,27.100949]
[1723760723815,0.06643541,142.13,142.1,27.05]
[1723760724009,0.06643541,142.13,142.1,33.76]
[1723760724214,0.06643541,142.13,142.11,1.7586]
[1723760724416,0.06643541,142.13,142.1,33.76]
[1723760726220,0.06643541,142.13,142.12,35.5186]
[1723760726711,1.17248773,142.19,142.11,33.80492328]
[1723760727114,1.17248773,142.19,142.11,0.04492328]
[1723760727814,1.758,142.18,142.11,1.80352328]
[1723760728019,0.04835931,142.16,142.11,1.80352328]
[1723760728409,0.04835931,142.16,142.12,1.7586]
[1723760729922,0.04835931,142.16,142.13,1.7584]
[1723760731517,0.04835931,142.16,142.11,0.04492328]
[1723760731720,33.80835931,142.16,142.11,0.04492328]
[1723760732023,1.7584,142.14,142.11,0.04492328]
[1723760732226,1.3166,142.13,142.11,0.04492328]
[1723760732616,1.7586,142.12,142.11,0.04492328]
[1723760732820,1.3166,142.13,142.04,40.3]
[1723760733016,1.3166,142.13,142.02,33.76]
[1723760733316,33.76,142.12,142.02,33.76]
[1723760733523,3.55171389,142.11,142.02,33.76]
[1723760734015,1.3166,142.13,142.05,0.05281671]
[1723760734016,0.05386636,142.08,142.05,0.05281671]
[1723760734819,0.05386636,142.08,142.06,1.7593]
[1723760735015,0.05386636,142.08,142.05,0.05281671]
[1723760735226,0.05386636,142.08,142.07,1.7592]
[1723760737030,0.05386636,142.08,142.06,33.76]
[1723760737031,2.4722,142.15,142.09,33.76]
[1723760737427,1.7584,142.14,142.09,33.76]
[1723760738227,0.05291356,142.13,142.1,0.05339321]
[1723760738730,0.05291356,142.13,142.1,1.81219321]
[1723760739530,0.05291356,142.13,142.11,33.76]
[1723760740833,0.05291356,142.13,142.12,1.7586]
[1723760741927,3.72048773,142.19,142.12,1.7586]
[1723760741928,1.17248773,142.19,142.12,40.3]
[1723760742136,1.17248773,142.19,142.16,33.76]
[1723760742432,1.17248773,142.19,142.14,33.76]
[1723760742933,1.17248773,142.19,142.15,1.80295101]
[1723760743130,0.05232281,142.18,142.15,0.04485101]
[1723760743329,1.17248773,142.19,142.16,33.76]
[1723760743528,1.17248773,142.19,142.18,33.76]
[1723760744133,1.17248773,142.19,142.18,35.5179]
[1723760746232,0.04571548,142.2,142.19,1.7577]
[1723760746628,0.04571548,142.2,142.18,0.04568317]
[1723760746829,0.04571548,142.2,142.18,1.80348317]
[1723760747029,0.04571548,142.2,142.18,0.04568317]
[1723760747435,0.04571548,142.2,142.19,1.7577]
[1723760747638,0.04571548,142.2,142.18,0.04568317]
[1723760750238,0.04571548,142.2,142.18,33.80568317]
[1723760750433,0.04571548,142.2,142.19,1.7577]
[1723760754535,0.04571548,142.2,142.18,33.80568317]
[1723760755035,0.04571548,142.2,142.19,1.7577]
[1723760756934,5.5197,142.28,142.22,1.7573]
[1723760757135,5.5197,142.28,142.22,35.5173]
[1723760757743,5.5197,142.28,142.23,1.7572]
[1723760757934,0.04481299,142.27,142.24,0.05185449]
[1723760759241,0.04481299,142.27,142.25,1.7569]
[1723760759638,0.04481299,142.27,142.24,33.81185449]
[1723760759838,0.04481299,142.27,142.26,35.5169]
[1723760760737,0.04481299,142.27,142.26,1.7569]
[1723760761437,0.04481299,142.27,142.26,35.5169]
[1723760762043,0.04481299,142.27,142.24,0.05185449]
[1723760762537,0.04481299,142.27,142.17,33.76]
[1723760762844,1.757,142.25,142.17,33.76]
[1723760763047,2.551,142.24,142.2,1.7575]
[1723760763340,2.551,142.24,142.19,37.31389555]
[1723760763536,2.551,142.24,142.2,0.05296849]
[1723760763742,0.05049213,142.23,142.2,0.05296849]
[1723760763934,0.05049213,142.23,142.22,33.76]
[1723760764135,2.551,142.32,142.22,37.24503795]
[1723760764733,1.7564,142.3,142.24,1.7571]
[1723760764936,2.551,142.32,142.24,33.76]
[1723760765142,2.551,142.32,142.27,0.04556915]
[1723760765143,0.05290486,142.29,142.27,0.04556915]
[1723760766935,0.05290486,142.29,142.28,1.7566]
[1723760767139,0.05290486,142.29,142.28,35.5166]
[1723760767341,0.05290486,142.29,142.27,0.04556915]
[1723760768847,0.05290486,142.29,142.27,1.80226915]
[1723760769945,0.05290486,142.29,142.27,0.04556915]
[1723760770451,0.05290486,142.29,142.22,6.6]
[1723760771042,1.80950486,142.29,142.24,1.7571]
[1723760771443,1.80950486,142.29,142.25,0.04653255]
[1723760772549,1.7566,142.28,142.25,0.04653255]
[1723760772949,0.05290486,142.29,142.25,0.04653255]
[1723760773150,1.2652,142.27,142.25,0.04653255]
[1723760773740,0.05290486,142.29,142.25,0.04653255]
[1723760774049,0.05290486,142.29,142.25,1.80343255]
[1723760774647,0.05290486,142.29,142.26,1.7569]
[1723760776049,0.05290486,142.29,142.26,33.76]
[1723760776651,0.05290486,142.29,142.28,1.7566]
[1723760777051,0.05290486,142.29,142.26,33.76]
[1723760777257,0.05290486,142.29,142.25,6.64653255]
[1723760777850,0.05290486,142.29,142.25,8.40343255]
[1723760778154,0.05290486,142.29,142.25,6.64653255]
[1723760778347,0.05290486,142.29,142.26,1.7568]
[1723760778653,0.05290486,142.29,142.25,6.64653255]
[1723760778845,0.05290486,142.29,142.25,0.04653255]
[1723760779546,0.05290486,142.29,142.25,1.80343255]
[1723760779850,0.05290486,142.29,142.25,0.04653255]
[1723760780649,0.05290486,142.29,142.26,33.76]
[1723760781551,0.05290486,142.29,142.27,1.7566]
[1723760783155,0.05290486,142.29,142.26,35.5168]
[1723760783851,0.05290486,142.29,142.28,1.7566]
[1723760784058,0.05290486,142.29,142.26,33.76]
[1723760784257,0.05290486,142.29,142.28,1.7566]
[1723760784645,0.05290486,142.29,142.26,33.76]
[1723760785060,0.05290486,142.29,142.27,1.7567]
[1723760786148,0.05290486,142.29,142.26,35.5168]
[1723760786349,0.05290486,142.29,142.26,33.76]
[1723760786750,3.9931,142.36,142.28,33.76]
[1723760786955,3.9931,142.36,142.29,3.44028158]
[1723760787461,3.9931,142.36,142.31,33.76]
[1723760788059,0.04931128,142.35,142.32,0.04805949]
[1723760790257,0.04931128,142.35,142.2,28.1]
[1723760790450,3.9931,142.36,142.29,33.76]
[1723760790655,3.9931,142.36,142.29,37.32153287]
[1723760790859,5.7488,142.36,142.31,33.76]
[1723760791561,0.05208393,142.35,142.32,0.05395925]
[1723760792156,0.05208393,142.35,142.32,1.81005925]
[1723760792461,0.05208393,142.35,142.33,33.76]
[1723760793050,261.76,142.49,142.33,33.76]
[1723760793257,261.76,142.49,142.31,9.93463928]
[1723760793258,9.1111,142.48,142.37,33.76]
[1723760793558,1.755,142.42,142.37,33.76]
[1723760793759,33.76,142.42,142.28,1.2629]
[1723760793957,2.6111,142.41,142.3,33.76]
[1723760794352,0.05387768,142.37,142.34,0.05235579]
[1723760794756,0.05387768,142.37,142.34,33.81235579]
[1723760795663,0.05387768,142.37,142.35,5.28196501]
[1723760795861,0.05387768,142.37,142.35,3.52616501]
[1723760796164,0.05387768,142.37,142.36,35.5156]
[1723760797455,1.2398,142.43,142.36,37.19485907]
[1723760797658,1.2398,142.43,142.37,33.76]
[1723760798365,1.2398,142.43,142.37,37.26944323]
[1723760798568,0.02865146,142.41,142.39,0.05215874]
[1723760800065,0.02865146,142.41,142.39,35.56735874]
[1723760800260,0.02865146,142.41,142.39,33.81215874]
[1723760800463,2.5816,142.47,142.39,33.81215874]
[1723760800664,2.5816,142.47,142.41,33.76]
[1723760800860,4.336,142.47,142.41,35.5149]
[1723760801261,1.7544,142.46,142.41,33.76]
[1723760801470,1.7544,142.46,142.42,0.04859274]
[1723760802064,4.3359,142.47,142.42,0.04859274]
[1723760802266,2.5816,142.47,142.42,0.04859274]
[1723760802465,1.2658,142.5,142.43,26.94]
[1723760802671,29.4869,142.5,142.41,26.94]
[1723760802873,29.4869,142.5,142.45,0.04731272]
[1723760803071,1.7544,142.47,142.45,0.04731272]
[1723760804267,1.7544,142.46,142.45,0.04731272]
[1723760804772,29.4869,142.5,142.45,0.04731272]
[1723760805777,1.7544,142.47,142.45,0.04731272]
[1723760806181,29.4869,142.5,142.45,0.04731272]
[1723760807278,3.5744091,142.51,142.45,26.98731272]
[1723760807477,1.7541,142.49,142.45,28.74181272]
[1723760808179,1.7539,142.5,142.46,1.7544]
[1723760808678,1.7539,142.5,142.45,26.98731272]
[1723760808879,5.3282091,142.51,142.47,1.7543]
[1723760809079,3.5744091,142.51,142.47,26.94]
[1723760809870,1.754,142.5,142.45,28.74171272]
[1723760810077,3.5744091,142.51,142.45,26.98731272]
[1723760810272,3.5744091,142.51,142.45,0.04731272]
[1723760810479,26.94,142.5,142.45,0.04731272]
[1723760810980,1.7542,142.48,142.45,0.04731272]
[1723760811180,10.0744091,142.51,142.45,0.04731272]
[1723760811681,1.754,142.5,142.45,0.04731272]
[1723760811876,26.94,142.5,142.45,0.04731272]
[1723760812281,3.5744091,142.51,142.45,0.04731272]
[1723760812479,30.5144091,142.51,142.45,0.04731272]
[1723760812670,1.7541,142.49,142.45,0.04731272]
[1723760812872,3.5744091,142.51,142.45,0.04731272]
[1723760813477,30.5144091,142.51,142.45,0.04731272]
[1723760814579,1.7544,142.47,142.45,0.04731272]
[1723760815080,1.7542,142.48,142.45,0.04731272]
[1723760815275,1.3462,142.47,142.45,0.04731272]
[1723760816678,1.7544,142.46,142.45,0.04731272]
[1723760816881,1.3462,142.47,142.39,33.44]
[1723760817377,1.7546,142.45,142.4,1.7551]
[1723760817886,0.04731272,142.44,142.41,0.05371292]
[1723760818278,0.04731272,142.44,142.41,26.99371292]
[1723760820181,1.80201272,142.44,142.41,26.99371292]
[1723760820383,0.04731272,142.44,142.41,26.99371292]
[1723760822183,0.04731272,142.44,142.41,0.05371292]
[1723760822686,0.04731272,142.44,142.41,26.99371292]
[1723760822881,0.04731272,142.44,142.41,0.05371292]
[1723760823094,1.29471272,142.44,142.41,0.05371292]
[1723760823687,1.7549,142.43,142.41,0.05371292]
[1723760823981,1.29471272,142.44,142.41,0.05371292]
[1723760824183,3.04941272,142.44,142.41,0.05371292]
[1723760824480,264.80251969,142.54,142.43,26.94]
[1723760824682,1.2474,142.5,142.43,26.94]
[1723760825393,1.2474,142.5,142.43,28.6947]
[1723760825690,1.2474,142.5,142.45,0.05065248]
[1723760825883,1.7542,142.48,142.45,0.05065248]
[1723760826284,1.2474,142.5,142.45,0.05065248]
[1723760826786,1.7541,142.49,142.45,26.99065248]
[1723760827392,1.2474,142.5,142.45,26.99065248]
[1723760827592,1.2474,142.5,142.45,0.05065248]
[1723760827792,1.7543,142.47,142.45,0.05065248]
[1723760828903,1.7542,142.48,142.45,0.05065248]
[1723760829099,2.4513,142.53,142.46,26.94]
[1723760829499,5.3283091,142.51,142.46,26.94]
[1723760829703,5.3283091,142.51,142.47,26.94]
[1723760830196,1.7539,142.5,142.47,26.94]
[1723760831301,5.3282091,142.51,142.47,26.94]
[1723760832203,3.5744091,142.51,142.45,0.05065248]
[1723760833004,1.7541,142.49,142.45,0.05065248]
[1723760834004,1.754,142.5,142.45,28.74515248]
[1723760834200,3.5744091,142.51,142.48,26.94]
[1723760834607,3.5744091,142.51,142.48,26.98771869]
[1723760835002,3.5744091,142.51,142.49,26.94]
[1723760836696,2.98579756,142.59,142.48,0.04771869]
[1723760836903,1.3241,142.58,142.53,26.94]
[1723760837211,1.2451,142.59,142.54,0.04800782]
[1723760837411,1.3241,142.58,142.54,0.04800782]
[1723760837803,1.7531,142.57,142.54,0.04800782]
[1723760838299,1.3241,142.58,142.54,0.04800782]
[1723760838500,3.0771,142.58,142.54,0.04800782]
[1723760838706,1.3241,142.58,142.54,0.04800782]
[1723760839008,1.3241,142.58,142.55,28.6932]
[1723760840204,1.3241,142.58,142.56,1.7531]
[1723760840407,235.32514634,142.74,142.57,26.94]
[1723760840600,2.5492,142.66,142.57,28.693]
[1723760840805,2.5492,142.66,142.61,0.04478914]
[1723760841007,1.7522,142.64,142.61,0.04478914]
[1723760841411,1.7524,142.62,142.61,0.04478914]
[1723760841606,1.7524,142.62,142.5,3.56164723]
[1723760841607,26.94,142.64,142.55,26.94]
[1723760841908,26.94,142.64,142.57,1.753]
[1723760842105,1.7525,142.62,142.57,1.753]
[1723760842409,2.5492,142.66,142.59,26.94]
[1723760842599,2.5492,142.66,142.61,26.94]
[1723760842806,0.04478914,142.64,142.61,26.98782272]
[1723760843011,0.04478914,142.64,142.61,0.04782272]
[1723760843404,1.79698914,142.64,142.61,0.04782272]
[1723760843807,0.04478914,142.64,142.61,0.04782272]
[1723760844111,1.7524,142.63,142.61,0.04782272]
[1723760846602,0.04478914,142.64,142.61,0.04782272]
[1723760847207,0.04478914,142.64,142.62,1.7524]
[1723760847414,0.04478914,142.64,142.61,0.04782272]
[1723760847710,0.04478914,142.64,142.63,28.6923]
[1723760849611,1.305,142.7,142.63,26.94]
[1723760849810,1.305,142.7,142.65,26.94]
[1723760850009,1.305,142.7,142.61,26.98782272]
[1723760850010,0.02,142.7,142.67,26.94]
[1723760850208,0.02,142.7,142.69,26.94]
[1723760850411,1.3078,142.75,142.69,26.94]
[1723760850610,1.3078,142.75,142.72,26.94]
[1723760851109,2.5477,142.78,142.72,26.94]
[1723760851406,1.3078,142.81,142.74,26.94]
[1723760851608,1.3078,142.81,142.76,26.94]
[1723760851809,3.44723584,142.83,142.76,26.94]
[1723760851810,1.83920543,142.9,142.8,26.94]
[1723760852010,2.5477,142.88,142.8,26.94]
[1723760852210,2.5477,142.88,142.75,26.94]
[1723760852211,2.5477,142.88,142.79,26.94]
[1723760852409,26.94,142.86,142.83,0.04722179]
[1723760852709,2.5477,142.88,142.69,1.2491]
[1723760852710,1.7501,142.82,142.77,1.7505]
[1723760852915,1.7501,142.82,142.76,26.94]
[1723760852916,6.44,142.85,142.76,26.94]
[1723760853218,33.38,142.85,142.76,26.94]
[1723760853512,33.38,142.85,142.72,6.44]
[1723760853513,26.94,142.83,142.75,26.94]
[1723760853719,26.94,142.81,142.71,26.94]
[1723760853919,26.94,142.79,142.77,0.04973156]
[1723760854121,33.38,142.79,142.69,33.38]
[1723760854416,1.7507,142.76,142.7,1.7514]
[1723760854615,6.44,142.79,142.72,26.94]
[1723760855013,1.7507,142.77,142.72,26.94]
[1723760855216,1.79665849,142.77,142.74,0.0503207]
[1723760855414,1.79665849,142.77,142.76,26.94]
[1723760855415,0.04595849,142.77,142.76,26.94]
[1723760855810,0.04595849,142.77,142.74,0.0503207]
[1723760856014,0.04595849,142.77,142.74,26.9903207]
[1723760856217,0.04595849,142.77,142.76,26.94]
[1723760857120,0.04595849,142.77,142.76,28.6907]
[1723760857318,33.38,142.89,142.78,26.94]
[1723760857522,1.75,142.82,142.77,26.94]
[1723760858020,26.94,142.85,142.77,26.94]